[Event "Titled Tuesday Blitz May 2 Early 2023"]
[White "Harshavardhan G B"]
[Black "Gracia Alvarez, Gerardo Antonio"]
[WhiteFideId "25059009"]
[BlackFideId "5109124"]
[WhiteElo "2323"]
[BlackElo "2160"]
[Result "1-0"]
[Round "02"]
[TimeControl "180+2"]
[Date "2023.05.02"]
[WhiteClock "0:00:12"]
[BlackClock "0:00:01"]

1. e4 {[%clk 0:03:00]}  c5 {[%clk 0:03:00]} 2. Nf3 {[%clk 0:02:57]}  Nc6 {[%clk 0:03:00]} 3. Bb5 {[%clk 0:02:56]}  d6 {[%clk 0:03:00]} 4. O-O {[%clk 0:02:55]}  Bd7 {[%clk 0:02:57]} 5. c3 {[%clk 0:02:54]}  Nf6 {[%clk 0:02:57]} 6. Re1 {[%clk 0:02:54]}  a6 {[%clk 0:02:58]} 7. Ba4 {[%clk 0:02:51]}  b5 {[%clk 0:02:56]} 8. Bc2 {[%clk 0:02:51]}  Bg4 {[%clk 0:02:56]} 9. h3 {[%clk 0:02:50]}  Bxf3 {[%clk 0:02:55]} 10. Qxf3 {[%clk 0:02:50]}  g6 {[%clk 0:02:55]} 11. d3 {[%clk 0:02:49]}  Bg7 {[%clk 0:02:54]} 12. Nd2 {[%clk 0:02:49]}  O-O {[%clk 0:02:52]} 13. Nf1 {[%clk 0:02:49]}  Nd7 {[%clk 0:02:45]} 14. Qd1 {[%clk 0:02:44]}  b4 {[%clk 0:02:43]} 15. Bd2 {[%clk 0:02:44]}  Rb8 {[%clk 0:02:39]} 16. Ne3 {[%clk 0:02:37]}  Re8 {[%clk 0:01:55]} 17. f4 {[%clk 0:02:33]}  e6 {[%clk 0:01:51]} 18. Rb1 {[%clk 0:02:28]}  Qc7 {[%clk 0:01:51]} 19. f5 {[%clk 0:02:27]}  Nde5 {[%clk 0:01:47]} 20. Rf1 {[%clk 0:02:26]}  Rbd8 {[%clk 0:01:15]} 21. f6 {[%clk 0:02:21]}  Bf8 {[%clk 0:01:13]} 22. Ng4 {[%clk 0:02:17]}  Nxg4 {[%clk 0:01:11]} 23. Qxg4 {[%clk 0:02:18]}  d5 {[%clk 0:01:05]} 24. Bf4 {[%clk 0:02:05]}  e5 {[%clk 0:01:03]} 25. Bg3 {[%clk 0:02:00]}  dxe4 {[%clk 0:00:59]} 26. dxe4 {[%clk 0:01:58]}  c4 {[%clk 0:01:00]} 27. Ba4 {[%clk 0:01:52]}  Qa5 {[%clk 0:00:51]} 28. Bxc6 {[%clk 0:01:20]}  Qb6+ {[%clk 0:00:51]} 29. Kh2 {[%clk 0:01:20]}  Qxc6 {[%clk 0:00:52]} 30. cxb4 {[%clk 0:01:18]}  Bxb4 {[%clk 0:00:49]} 31. Rbd1 {[%clk 0:01:17]}  Rxd1 {[%clk 0:00:35]} 32. Qxd1 {[%clk 0:01:14]}  Qxe4 {[%clk 0:00:32]} 33. Qa4 {[%clk 0:01:10]}  Rb8 {[%clk 0:00:29]} 34. Qxa6 {[%clk 0:00:43]}  Bf8 {[%clk 0:00:26]} 35. Re1 {[%clk 0:00:40]}  Qa8 {[%clk 0:00:16]} 36. Qxa8 {[%clk 0:00:38]}  Rxa8 {[%clk 0:00:17]} 37. a3 {[%clk 0:00:37]}  c3 {[%clk 0:00:17]} 38. bxc3 {[%clk 0:00:37]}  Rxa3 {[%clk 0:00:17]} 39. Bxe5 {[%clk 0:00:38]}  h6 {[%clk 0:00:16]} 40. Bd4 {[%clk 0:00:37]}  Ra8 {[%clk 0:00:13]} 41. Kg3 {[%clk 0:00:36]}  Rc8 {[%clk 0:00:13]} 42. Kf3 {[%clk 0:00:36]}  Kh7 {[%clk 0:00:13]} 43. Rb1 {[%clk 0:00:36]}  g5 {[%clk 0:00:13]} 44. g4 {[%clk 0:00:35]}  Kg6 {[%clk 0:00:13]} 45. Ke4 {[%clk 0:00:34]}  h5 {[%clk 0:00:13]} 46. Rb7 {[%clk 0:00:31]}  hxg4 {[%clk 0:00:13]} 47. hxg4 {[%clk 0:00:32]}  Bd6 {[%clk 0:00:11]} 48. Kd3 {[%clk 0:00:25]}  Rh8 {[%clk 0:00:10]} 49. Rb1 {[%clk 0:00:23]}  Rh3+ {[%clk 0:00:09]} 50. Kc4 {[%clk 0:00:22]}  Rg3 {[%clk 0:00:09]} 51. Kd5 {[%clk 0:00:23]}  Bf4 {[%clk 0:00:08]} 52. c4 {[%clk 0:00:22]}  Rxg4 {[%clk 0:00:08]} 53. c5 {[%clk 0:00:22]}  Rg2 {[%clk 0:00:09]} 54. c6 {[%clk 0:00:21]}  Rc2 {[%clk 0:00:09]} 55. Rf1 {[%clk 0:00:18]}  Bc7 {[%clk 0:00:07]} 56. Rh1 {[%clk 0:00:16]}  g4 {[%clk 0:00:07]} 57. Rh8 {[%clk 0:00:15]}  Kf5 {[%clk 0:00:05]} 58. Rh5+ {[%clk 0:00:14]}  Kg6 {[%clk 0:00:05]} 59. Rh8 {[%clk 0:00:14]}  Kf5 {[%clk 0:00:05]} 60. Rh7 {[%clk 0:00:14]}  g3 {[%clk 0:00:04]} 61. Rg7 {[%clk 0:00:12]}  Rd2 {[%clk 0:00:03]} 62. Kc4 {[%clk 0:00:11]}  Rc2+ {[%clk 0:00:02]} 63. Kd3 {[%clk 0:00:11]}  Rxc6 {[%clk 0:00:02]} 64. Rxf7 {[%clk 0:00:11]}  Kg4 {[%clk 0:00:02]} 65. Rg7+ {[%clk 0:00:11]}  Kf3 {[%clk 0:00:02]} 66. f7 {[%clk 0:00:12]}  Bd6 {[%clk 0:00:01]} 67. Rg6 {[%clk 0:00:12]} 1-0


[Site "https://www.chess.com"]

[Event "Titled Tuesday Blitz May 2 Early 2023"]
[White "Donskov, Anatoly"]
[Black "Papasimakopoulos, Alexandros"]
[WhiteFideId "24143413"]
[BlackFideId "4244125"]
[WhiteElo "2247"]
[BlackElo "2359"]
[Result "0-1"]
[Round "02"]
[TimeControl "180+2"]
[Date "2023.05.02"]
[WhiteClock "0:00:01"]
[BlackClock "0:00:02"]

1. e4 {[%clk 0:02:52]}  e6 {[%clk 0:02:40]} 2. d4 {[%clk 0:02:48]}  d5 {[%clk 0:02:37]} 3. Nc3 {[%clk 0:02:47]}  Bb4 {[%clk 0:02:36]} 4. Bd3 {[%clk 0:02:47]}  dxe4 {[%clk 0:02:33]} 5. Bxe4 {[%clk 0:02:48]}  Nf6 {[%clk 0:02:33]} 6. Bd3 {[%clk 0:02:48]}  Nc6 {[%clk 0:02:23]} 7. Nf3 {[%clk 0:02:47]}  O-O {[%clk 0:02:17]} 8. O-O {[%clk 0:02:46]}  h6 {[%clk 0:02:11]} 9. Re1 {[%clk 0:02:42]}  Kh8 {[%clk 0:02:08]} 10. a3 {[%clk 0:02:41]}  Be7 {[%clk 0:01:59]} 11. Ne2 {[%clk 0:02:02]}  b6 {[%clk 0:01:52]} 12. c4 {[%clk 0:01:55]}  Bb7 {[%clk 0:01:46]} 13. Bd2 {[%clk 0:01:37]}  Re8 {[%clk 0:01:28]} 14. Bc3 {[%clk 0:01:36]}  Bf8 {[%clk 0:01:25]} 15. Nf4 {[%clk 0:01:28]}  a5 {[%clk 0:01:20]} 16. Qe2 {[%clk 0:01:24]}  a4 {[%clk 0:01:19]} 17. Rad1 {[%clk 0:01:23]}  Na5 {[%clk 0:01:19]} 18. Ne5 {[%clk 0:01:22]}  Kg8 {[%clk 0:01:19]} 19. Bb1 {[%clk 0:00:58]}  g6 {[%clk 0:01:06]} 20. Nxf7 {[%clk 0:00:39]}  Kxf7 {[%clk 0:01:07]} 21. Bxg6+ {[%clk 0:00:39]}  Kg8 {[%clk 0:01:03]} 22. Nxe6 {[%clk 0:00:36]}  Qd6 {[%clk 0:00:43]} 23. d5 {[%clk 0:00:31]}  Bg7 {[%clk 0:00:41]} 24. Bxf6 {[%clk 0:00:15]}  Bxf6 {[%clk 0:00:39]} 25. Bxe8 {[%clk 0:00:08]}  Rxe8 {[%clk 0:00:40]} 26. Qh5 {[%clk 0:00:09]}  Re7 {[%clk 0:00:10]} 27. Qg6+ {[%clk 0:00:09]}  Bg7 {[%clk 0:00:09]} 28. Rd3 {[%clk 0:00:05]}  Bc8 {[%clk 0:00:07]} 29. Rg3 {[%clk 0:00:04]}  Nxc4 {[%clk 0:00:04]} 30. Qh5 {[%clk 0:00:01]}  Bxe6 {[%clk 0:00:04]} 31. dxe6 {[%clk 0:00:01]}  Rxe6 {[%clk 0:00:04]} 32. Rf1 {[%clk 0:00:01]}  Rf6 {[%clk 0:00:04]} 33. Rd1 {[%clk 0:00:01]}  Qe7 {[%clk 0:00:03]} 34. Qg4 {[%clk 0:00:01]}  Ne5 {[%clk 0:00:03]} 35. Qe4 {[%clk 0:00:01]}  Ng6 {[%clk 0:00:02]} 0-1


[Site "https://www.chess.com"]

[Event "Titled Tuesday Blitz May 2 Early 2023"]
[White "Bernat, David"]
[Black "Preotu, Razvan"]
[WhiteFideId "2099225"]
[BlackFideId "2613280"]
[WhiteElo "1862"]
[BlackElo "2407"]
[Result "1-0"]
[Round "02"]
[TimeControl "180+2"]
[Date "2023.05.02"]
[WhiteClock "0:00:00"]
[BlackClock "0:00:00"]

1. c4 {[%clk 0:00:01]}  c5 {[%clk 0:00:01]} 2. Nc3 {[%clk 0:00:01]}  Nf6 {[%clk 0:00:01]} 3. g3 {[%clk 0:00:01]}  d5 {[%clk 0:00:01]} 4. cxd5 {[%clk 0:00:01]}  Nxd5 {[%clk 0:00:01]} 5. Bg2 {[%clk 0:00:01]}  Nc7 {[%clk 0:00:01]} 6. Qa4+ {[%clk 0:00:01]}  Bd7 {[%clk 0:00:01]} 7. Qb3 {[%clk 0:00:01]}  Nc6 {[%clk 0:00:01]} 8. d3 {[%clk 0:00:01]}  Nd4 {[%clk 0:00:01]} 9. Qd1 {[%clk 0:00:01]}  Bc6 {[%clk 0:00:01]} 10. Bxc6+ {[%clk 0:00:01]}  Nxc6 {[%clk 0:00:01]} 11. Nf3 {[%clk 0:00:01]}  e5 {[%clk 0:00:01]} 12. Qa4 {[%clk 0:00:01]}  Qd7 {[%clk 0:00:01]} 13. Be3 {[%clk 0:00:01]}  Be7 {[%clk 0:00:01]} 14. O-O {[%clk 0:00:01]}  Ne6 {[%clk 0:00:01]} 15. Rfc1 {[%clk 0:00:01]}  Rc8 {[%clk 0:00:00]} 16. a3 {[%clk 0:00:01]}  a6 {[%clk 0:00:00]} 17. Ne4 {[%clk 0:00:01]}  b5 {[%clk 0:00:00]} 18. Qxa6 {[%clk 0:00:00]}  Ncd4 {[%clk 0:00:00]} 19. Nxe5 {[%clk 0:00:00]}  Qd5 {[%clk 0:00:00]} 20. Qxc8+ {[%clk 0:00:00]} 1-0


[Site "https://www.chess.com"]

[Event "Titled Tuesday Blitz May 2 Early 2023"]
[White "Gutkin, Ilya"]
[Black "Mirzoev, Azer"]
[WhiteFideId "16203470"]
[BlackFideId "13400304"]
[WhiteElo "2265"]
[BlackElo "2525"]
[Result "1-0"]
[Round "02"]
[TimeControl "180+2"]
[Date "2023.05.02"]
[WhiteClock "0:00:16"]
[BlackClock "0:00:01"]

1. Nf3 {[%clk 0:03:00]}  c5 {[%clk 0:02:12]} 2. c4 {[%clk 0:02:59]}  Nc6 {[%clk 0:02:12]} 3. d4 {[%clk 0:02:59]}  cxd4 {[%clk 0:02:12]} 4. Nxd4 {[%clk 0:03:00]}  g6 {[%clk 0:02:12]} 5. e4 {[%clk 0:03:00]}  Bg7 {[%clk 0:02:12]} 6. Be3 {[%clk 0:03:00]}  Nh6 {[%clk 0:02:12]} 7. Be2 {[%clk 0:02:52]}  O-O {[%clk 0:02:10]} 8. Qd2 {[%clk 0:02:49]}  Nxd4 {[%clk 0:01:59]} 9. Bxd4 {[%clk 0:02:48]}  Bxd4 {[%clk 0:01:46]} 10. Qxd4 {[%clk 0:02:47]}  d6 {[%clk 0:01:46]} 11. Qd2 {[%clk 0:02:21]}  Kg7 {[%clk 0:01:44]} 12. h4 {[%clk 0:02:21]}  f6 {[%clk 0:01:40]} 13. h5 {[%clk 0:02:14]}  g5 {[%clk 0:01:40]} 14. Nc3 {[%clk 0:02:13]}  Nf7 {[%clk 0:01:40]} 15. O-O-O {[%clk 0:02:11]}  h6 {[%clk 0:01:35]} 16. Kb1 {[%clk 0:02:02]}  Be6 {[%clk 0:01:33]} 17. g3 {[%clk 0:01:59]}  a6 {[%clk 0:01:31]} 18. f4 {[%clk 0:01:59]}  b5 {[%clk 0:01:27]} 19. Nd5 {[%clk 0:01:25]}  bxc4 {[%clk 0:01:10]} 20. Bxc4 {[%clk 0:01:26]}  a5 {[%clk 0:01:07]} 21. Qd3 {[%clk 0:01:24]}  Rc8 {[%clk 0:00:59]} 22. Bb3 {[%clk 0:01:22]}  Rc5 {[%clk 0:00:52]} 23. e5 {[%clk 0:00:58]}  Bxd5 {[%clk 0:00:12]} 24. Qg6+ {[%clk 0:00:57]}  Kh8 {[%clk 0:00:11]} 25. Bxd5 {[%clk 0:00:57]}  Rxd5 {[%clk 0:00:11]} 26. Rxd5 {[%clk 0:00:56]}  Qa8 {[%clk 0:00:09]} 27. Rhd1 {[%clk 0:00:54]}  dxe5 {[%clk 0:00:09]} 28. fxe5 {[%clk 0:00:52]}  Qc6 {[%clk 0:00:07]} 29. exf6 {[%clk 0:00:47]}  exf6 {[%clk 0:00:06]} 30. Rd7 {[%clk 0:00:43]}  Qe6 {[%clk 0:00:06]} 31. a3 {[%clk 0:00:31]}  a4 {[%clk 0:00:06]} 32. Ka1 {[%clk 0:00:28]}  g4 {[%clk 0:00:03]} 33. Ra7 {[%clk 0:00:20]}  Qb3 {[%clk 0:00:02]} 34. Rf1 {[%clk 0:00:17]}  Qe6 {[%clk 0:00:01]} 35. Rd1 {[%clk 0:00:16]} 1-0


[Site "https://www.chess.com"]

[Event "Titled Tuesday Blitz May 2 Early 2023"]
[White "Munoz, Francisco Javier"]
[Black "Seder, Mohammed"]
[WhiteFideId "128368"]
[BlackFideId "11505567"]
[WhiteElo "2383"]
[BlackElo "1862"]
[Result "1-0"]
[Round "02"]
[TimeControl "180+2"]
[Date "2023.05.02"]
[WhiteClock "0:01:46"]
[BlackClock "0:00:02"]

1. e4 {[%clk 0:03:00]}  c5 {[%clk 0:01:59]} 2. Nc3 {[%clk 0:03:01]}  Nc6 {[%clk 0:01:58]} 3. Nf3 {[%clk 0:02:56]}  e5 {[%clk 0:01:55]} 4. Bb5 {[%clk 0:02:56]}  d6 {[%clk 0:01:52]} 5. Ne2 {[%clk 0:02:52]}  Nf6 {[%clk 0:01:41]} 6. Ng3 {[%clk 0:02:52]}  g6 {[%clk 0:01:34]} 7. Bxc6+ {[%clk 0:02:50]}  bxc6 {[%clk 0:01:33]} 8. d3 {[%clk 0:02:50]}  Bg7 {[%clk 0:01:28]} 9. a3 {[%clk 0:02:50]}  Rb8 {[%clk 0:01:27]} 10. O-O {[%clk 0:02:49]}  O-O {[%clk 0:01:23]} 11. b4 {[%clk 0:02:48]}  cxb4 {[%clk 0:01:20]} 12. axb4 {[%clk 0:02:49]}  Rxb4 {[%clk 0:00:56]} 13. Rxa7 {[%clk 0:02:48]}  Qb6 {[%clk 0:00:49]} 14. Be3 {[%clk 0:02:48]}  c5 {[%clk 0:00:48]} 15. Qa1 {[%clk 0:02:48]}  Ng4 {[%clk 0:00:35]} 16. Bg5 {[%clk 0:02:43]}  f5 {[%clk 0:00:26]} 17. Nd2 {[%clk 0:02:21]}  Be6 {[%clk 0:00:17]} 18. Re7 {[%clk 0:02:04]}  Bf7 {[%clk 0:00:15]} 19. exf5 {[%clk 0:02:04]}  gxf5 {[%clk 0:00:15]} 20. Nxf5 {[%clk 0:02:03]}  Bh8 {[%clk 0:00:06]} 21. h3 {[%clk 0:01:59]}  e4 {[%clk 0:00:06]} 22. d4 {[%clk 0:01:46]}  cxd4 {[%clk 0:00:02]} 23. hxg4 {[%clk 0:01:46]}  d3 {[%clk 0:00:02]} 24. Nh6# {[%clk 0:01:46]} 1-0


[Site "https://www.chess.com"]

[Event "Titled Tuesday Blitz May 2 Early 2023"]
[White "Bayasgalan, Khishigbaatar"]
[Black "Mendez Fortes, Eduardo Jesus"]
[WhiteFideId "4904311"]
[BlackFideId "3502376"]
[WhiteElo "2057"]
[BlackElo "2307"]
[Result "0-1"]
[Round "02"]
[TimeControl "180+2"]
[Date "2023.05.02"]
[WhiteClock "0:00:04"]
[BlackClock "0:00:04"]

1. d4 {[%clk 0:03:00]}  Nf6 {[%clk 0:02:57]} 2. c4 {[%clk 0:03:01]}  e6 {[%clk 0:02:56]} 3. Nc3 {[%clk 0:03:02]}  Bb4 {[%clk 0:02:51]} 4. Qc2 {[%clk 0:03:02]}  O-O {[%clk 0:02:38]} 5. e4 {[%clk 0:02:58]}  d5 {[%clk 0:02:35]} 6. cxd5 {[%clk 0:02:53]}  exd5 {[%clk 0:02:35]} 7. e5 {[%clk 0:02:53]}  Ne4 {[%clk 0:02:35]} 8. Bd3 {[%clk 0:02:53]}  c5 {[%clk 0:02:28]} 9. Bxe4 {[%clk 0:02:46]}  dxe4 {[%clk 0:02:27]} 10. dxc5 {[%clk 0:02:45]}  Nd7 {[%clk 0:02:24]} 11. Ne2 {[%clk 0:02:43]}  Nxc5 {[%clk 0:02:21]} 12. O-O {[%clk 0:02:43]}  Bf5 {[%clk 0:02:19]} 13. Be3 {[%clk 0:02:41]}  Nd3 {[%clk 0:02:13]} 14. Ng3 {[%clk 0:02:37]}  Bxc3 {[%clk 0:02:08]} 15. Qxc3 {[%clk 0:02:28]}  Bg6 {[%clk 0:02:08]} 16. Rad1 {[%clk 0:02:25]}  Qe7 {[%clk 0:02:06]} 17. f4 {[%clk 0:02:06]}  exf3 {[%clk 0:01:30]} 18. Rxd3 {[%clk 0:02:05]}  fxg2 {[%clk 0:01:28]} 19. Rfd1 {[%clk 0:01:49]}  Bxd3 {[%clk 0:01:26]} 20. Rxd3 {[%clk 0:01:49]}  Qe6 {[%clk 0:01:07]} 21. Rd6 {[%clk 0:01:43]}  Qxa2 {[%clk 0:01:01]} 22. Kxg2 {[%clk 0:01:41]}  Rac8 {[%clk 0:00:58]} 23. Qd4 {[%clk 0:01:29]}  Rc2+ {[%clk 0:00:57]} 24. Kh3 {[%clk 0:01:28]}  Rxb2 {[%clk 0:00:53]} 25. Qxa7 {[%clk 0:01:08]}  Rxh2+ {[%clk 0:00:52]} 26. Kg4 {[%clk 0:01:08]}  h5+ {[%clk 0:00:49]} 27. Kf4 {[%clk 0:00:53]}  Qc4+ {[%clk 0:00:33]} 28. Qd4 {[%clk 0:00:50]}  Rh4+ {[%clk 0:00:27]} 29. Kg5 {[%clk 0:00:46]}  Rxd4 {[%clk 0:00:25]} 30. Bxd4 {[%clk 0:00:47]}  h4 {[%clk 0:00:22]} 31. Kxh4 {[%clk 0:00:44]}  b5 {[%clk 0:00:22]} 32. Nf5 {[%clk 0:00:34]}  Re8 {[%clk 0:00:19]} 33. Kg5 {[%clk 0:00:32]}  Re6 {[%clk 0:00:15]} 34. Rd8+ {[%clk 0:00:30]}  Kh7 {[%clk 0:00:15]} 35. Rd7 {[%clk 0:00:26]}  Rg6+ {[%clk 0:00:14]} 36. Kf4 {[%clk 0:00:22]}  Qe2 {[%clk 0:00:13]} 37. Ne3 {[%clk 0:00:20]}  Qf2+ {[%clk 0:00:12]} 38. Ke4 {[%clk 0:00:20]}  f5+ {[%clk 0:00:11]} 39. exf6 {[%clk 0:00:20]}  Rxf6 {[%clk 0:00:11]} 40. Bxf6 {[%clk 0:00:19]}  Qxf6 {[%clk 0:00:12]} 41. Rd5 {[%clk 0:00:18]}  Qc6 {[%clk 0:00:12]} 42. Kd4 {[%clk 0:00:16]}  b4 {[%clk 0:00:12]} 43. Rh5+ {[%clk 0:00:13]}  Kg6 {[%clk 0:00:10]} 44. Rc5 {[%clk 0:00:13]}  Qf6+ {[%clk 0:00:09]} 45. Kd3 {[%clk 0:00:10]}  b3 {[%clk 0:00:06]} 46. Rb5 {[%clk 0:00:06]}  b2 {[%clk 0:00:06]} 47. Nc4 {[%clk 0:00:04]}  b1=Q+ {[%clk 0:00:04]} 0-1


[Site "https://www.chess.com"]

[Event "Titled Tuesday Blitz May 2 Early 2023"]
[White "Buscar, Michael"]
[Black "Girya, Olga"]
[WhiteFideId "2603616"]
[BlackFideId "4195752"]
[WhiteElo "2010"]
[BlackElo "2263"]
[Result "0-1"]
[Round "02"]
[TimeControl "180+2"]
[Date "2023.05.02"]
[WhiteClock "0:00:12"]
[BlackClock "0:00:19"]

1. d4 {[%clk 0:02:51]}  Nf6 {[%clk 0:02:58]} 2. c4 {[%clk 0:02:51]}  e6 {[%clk 0:02:59]} 3. Nc3 {[%clk 0:02:50]}  Bb4 {[%clk 0:02:58]} 4. e3 {[%clk 0:02:49]}  O-O {[%clk 0:02:57]} 5. Bd3 {[%clk 0:02:49]}  c5 {[%clk 0:02:57]} 6. Ne2 {[%clk 0:02:48]}  cxd4 {[%clk 0:02:55]} 7. exd4 {[%clk 0:02:47]}  d5 {[%clk 0:02:56]} 8. O-O {[%clk 0:02:46]}  dxc4 {[%clk 0:02:55]} 9. Bxc4 {[%clk 0:02:46]}  b6 {[%clk 0:02:55]} 10. a3 {[%clk 0:02:42]}  Bd6 {[%clk 0:02:46]} 11. d5 {[%clk 0:02:41]}  Ba6 {[%clk 0:01:53]} 12. Bxa6 {[%clk 0:02:33]}  Nxa6 {[%clk 0:01:54]} 13. dxe6 {[%clk 0:02:33]}  fxe6 {[%clk 0:01:55]} 14. Bg5 {[%clk 0:02:25]}  Bxh2+ {[%clk 0:01:49]} 15. Kxh2 {[%clk 0:02:21]}  Ng4+ {[%clk 0:01:49]} 16. Kg1 {[%clk 0:02:18]}  Qxg5 {[%clk 0:01:50]} 17. Qd3 {[%clk 0:01:57]}  Qh4 {[%clk 0:01:35]} 18. Qg3 {[%clk 0:01:52]}  Qxg3 {[%clk 0:01:32]} 19. Nxg3 {[%clk 0:01:52]}  Nc5 {[%clk 0:01:29]} 20. f3 {[%clk 0:01:51]}  Ne3 {[%clk 0:01:27]} 21. Rf2 {[%clk 0:01:48]}  Rad8 {[%clk 0:01:06]} 22. Re1 {[%clk 0:01:45]}  Nd5 {[%clk 0:00:59]} 23. Nb5 {[%clk 0:01:26]}  Nd3 {[%clk 0:00:58]} 24. Rxe6 {[%clk 0:01:22]}  Nxf2 {[%clk 0:00:56]} 25. Kxf2 {[%clk 0:01:23]}  Nf4 {[%clk 0:00:55]} 26. Rd6 {[%clk 0:01:14]}  Rxd6 {[%clk 0:00:53]} 27. Nxd6 {[%clk 0:01:15]}  Nd3+ {[%clk 0:00:51]} 28. Ke3 {[%clk 0:01:14]}  Nxb2 {[%clk 0:00:50]} 29. Kd4 {[%clk 0:01:09]}  Rd8 {[%clk 0:00:46]} 30. Ke5 {[%clk 0:01:07]}  Nd3+ {[%clk 0:00:43]} 31. Ke6 {[%clk 0:01:05]}  Kf8 {[%clk 0:00:39]} 32. Ngf5 {[%clk 0:01:03]}  g6 {[%clk 0:00:34]} 33. Nd4 {[%clk 0:00:56]}  Nf4+ {[%clk 0:00:34]} 34. Ke5 {[%clk 0:00:54]}  Nd3+ {[%clk 0:00:24]} 35. Kd5 {[%clk 0:00:47]}  Rd7 {[%clk 0:00:20]} 36. Kc6 {[%clk 0:00:41]}  Nc5 {[%clk 0:00:20]} 37. Ne6+ {[%clk 0:00:12]}  Ke7 {[%clk 0:00:20]} 38. Nxc5 {[%clk 0:00:12]}  Rxd6+ {[%clk 0:00:19]} 0-1


[Site "https://www.chess.com"]

[Event "Titled Tuesday Blitz May 2 Early 2023"]
[White "Spitzl, Vinzent"]
[Black "Manon-og, Ramon Jr."]
[WhiteFideId "12901253"]
[BlackFideId "5200776"]
[WhiteElo "2225"]
[BlackElo "1999"]
[Result "1-0"]
[Round "02"]
[TimeControl "180+2"]
[Date "2023.05.02"]
[WhiteClock "0:00:01"]
[BlackClock "0:00:00"]

1. e4 {[%clk 0:00:01]}  c5 {[%clk 0:00:01]} 2. Nf3 {[%clk 0:00:01]}  d6 {[%clk 0:00:01]} 3. d4 {[%clk 0:00:01]}  cxd4 {[%clk 0:00:01]} 4. Nxd4 {[%clk 0:00:01]}  Nf6 {[%clk 0:00:01]} 5. Nc3 {[%clk 0:00:01]}  a6 {[%clk 0:00:01]} 6. Bg5 {[%clk 0:00:01]}  e6 {[%clk 0:00:01]} 7. Qe2 {[%clk 0:00:01]}  Be7 {[%clk 0:00:01]} 8. f4 {[%clk 0:00:01]}  O-O {[%clk 0:00:01]} 9. O-O-O {[%clk 0:00:01]}  Qc7 {[%clk 0:00:01]} 10. g4 {[%clk 0:00:01]}  e5 {[%clk 0:00:01]} 11. Nf5 {[%clk 0:00:01]}  exf4 {[%clk 0:00:01]} 12. Nxe7+ {[%clk 0:00:01]}  Qxe7 {[%clk 0:00:01]} 13. Nd5 {[%clk 0:00:01]}  Qe5 {[%clk 0:00:01]} 14. Bxf6 {[%clk 0:00:01]}  gxf6 {[%clk 0:00:01]} 15. Rg1 {[%clk 0:00:01]}  Be6 {[%clk 0:00:01]} 16. Qf3 {[%clk 0:00:01]}  Nd7 {[%clk 0:00:01]} 17. h4 {[%clk 0:00:01]}  Nc5 {[%clk 0:00:01]} 18. g5 {[%clk 0:00:01]}  f5 {[%clk 0:00:00]} 19. Nf6+ {[%clk 0:00:01]}  Kg7 {[%clk 0:00:00]} 20. Qh5 {[%clk 0:00:01]}  Qxf6 {[%clk 0:00:00]} 21. gxf6+ {[%clk 0:00:01]}  Kh8 {[%clk 0:00:00]} 22. Rg7 {[%clk 0:00:01]} 1-0


[Site "https://www.chess.com"]

[Event "Titled Tuesday Blitz May 2 Early 2023"]
[White "Prudnykova, Olga"]
[Black "Bartel, Michal"]
[WhiteFideId "14121093"]
[BlackFideId "1119257"]
[WhiteElo "2113"]
[BlackElo "2282"]
[Result "1/2-1/2"]
[Round "02"]
[TimeControl "180+2"]
[Date "2023.05.02"]
[WhiteClock "0:00:14"]
[BlackClock "0:01:36"]

1. e4 {[%clk 0:02:59]}  e5 {[%clk 0:03:00]} 2. d4 {[%clk 0:02:58]}  exd4 {[%clk 0:03:00]} 3. Qxd4 {[%clk 0:02:59]}  Nc6 {[%clk 0:03:00]} 4. Qc4 {[%clk 0:02:59]}  g6 {[%clk 0:02:59]} 5. Nc3 {[%clk 0:02:57]}  Bg7 {[%clk 0:03:00]} 6. Be3 {[%clk 0:02:56]}  d6 {[%clk 0:03:00]} 7. O-O-O {[%clk 0:02:55]}  Nge7 {[%clk 0:02:58]} 8. f4 {[%clk 0:02:53]}  O-O {[%clk 0:02:57]} 9. Nf3 {[%clk 0:02:52]}  Rb8 {[%clk 0:02:56]} 10. e5 {[%clk 0:02:45]}  Be6 {[%clk 0:02:55]} 11. Qa4 {[%clk 0:02:45]}  d5 {[%clk 0:02:54]} 12. Ng5 {[%clk 0:02:33]}  Qc8 {[%clk 0:02:50]} 13. Nxe6 {[%clk 0:02:31]}  fxe6 {[%clk 0:02:51]} 14. g3 {[%clk 0:02:26]}  a6 {[%clk 0:02:48]} 15. Bc5 {[%clk 0:02:23]}  b5 {[%clk 0:02:45]} 16. Qb3 {[%clk 0:02:23]}  Rf7 {[%clk 0:02:43]} 17. Ne2 {[%clk 0:02:20]}  a5 {[%clk 0:02:28]} 18. Nd4 {[%clk 0:02:17]}  Nxd4 {[%clk 0:02:27]} 19. Rxd4 {[%clk 0:02:12]}  Nf5 {[%clk 0:02:26]} 20. Rd1 {[%clk 0:02:11]}  a4 {[%clk 0:02:23]} 21. Qb4 {[%clk 0:02:10]}  Bf8 {[%clk 0:02:20]} 22. a3 {[%clk 0:02:06]}  Bxc5 {[%clk 0:02:14]} 23. Qxc5 {[%clk 0:02:05]}  Qf8 {[%clk 0:02:15]} 24. Qxf8+ {[%clk 0:02:04]}  Kxf8 {[%clk 0:02:15]} 25. Bh3 {[%clk 0:02:04]}  Ne3 {[%clk 0:02:09]} 26. Rd3 {[%clk 0:01:21]}  Nf5 {[%clk 0:02:08]} 27. c3 {[%clk 0:01:20]}  c5 {[%clk 0:02:07]} 28. Re1 {[%clk 0:01:18]}  Ke7 {[%clk 0:02:05]} 29. Bg2 {[%clk 0:01:13]}  Rff8 {[%clk 0:02:03]} 30. Red1 {[%clk 0:01:12]}  Rfc8 {[%clk 0:02:02]} 31. Kd2 {[%clk 0:01:10]}  b4 {[%clk 0:02:02]} 32. axb4 {[%clk 0:01:07]}  cxb4 {[%clk 0:02:03]} 33. Rc1 {[%clk 0:00:46]}  bxc3+ {[%clk 0:02:01]} 34. bxc3 {[%clk 0:00:46]}  a3 {[%clk 0:01:56]} 35. Kd1 {[%clk 0:00:20]}  Rb2 {[%clk 0:01:51]} 36. Bh3 {[%clk 0:00:19]}  Rxh2 {[%clk 0:01:48]} 37. Bxf5 {[%clk 0:00:19]}  gxf5 {[%clk 0:01:48]} 38. c4 {[%clk 0:00:20]}  a2 {[%clk 0:01:48]} 39. Ra3 {[%clk 0:00:19]}  Rh1+ {[%clk 0:01:47]} 40. Kd2 {[%clk 0:00:20]}  Rxc1 {[%clk 0:01:48]} 41. Kxc1 {[%clk 0:00:20]}  Rxc4+ {[%clk 0:01:48]} 42. Kd2 {[%clk 0:00:21]}  Rb4 {[%clk 0:01:41]} 43. Ra7+ {[%clk 0:00:20]}  Kf8 {[%clk 0:01:41]} 44. Rxa2 {[%clk 0:00:21]}  Rb3 {[%clk 0:01:42]} 45. Ra6 {[%clk 0:00:20]}  Kf7 {[%clk 0:01:42]} 46. Ra7+ {[%clk 0:00:19]}  Kg6 {[%clk 0:01:42]} 47. Re7 {[%clk 0:00:18]}  Rb6 {[%clk 0:01:42]} 48. Ke3 {[%clk 0:00:17]}  h6 {[%clk 0:01:43]} 49. Kd4 {[%clk 0:00:17]}  Kh5 {[%clk 0:01:42]} 50. Kc5 {[%clk 0:00:16]}  Ra6 {[%clk 0:01:42]} 51. Rd7 {[%clk 0:00:15]}  Kg4 {[%clk 0:01:42]} 52. Rd6 {[%clk 0:00:16]}  Ra5+ {[%clk 0:01:40]} 53. Kb4 {[%clk 0:00:16]}  Ra1 {[%clk 0:01:40]} 54. Rxe6 {[%clk 0:00:17]}  Kxg3 {[%clk 0:01:41]} 55. Kc5 {[%clk 0:00:17]}  Rd1 {[%clk 0:01:40]} 56. Rxh6 {[%clk 0:00:17]}  Kxf4 {[%clk 0:01:41]} 57. e6 {[%clk 0:00:17]}  d4 {[%clk 0:01:41]} 58. e7 {[%clk 0:00:17]}  Re1 {[%clk 0:01:42]} 59. Kd6 {[%clk 0:00:17]}  d3 {[%clk 0:01:42]} 60. Re6 {[%clk 0:00:17]}  Rxe6+ {[%clk 0:01:42]} 61. Kxe6 {[%clk 0:00:17]}  d2 {[%clk 0:01:43]} 62. e8=Q {[%clk 0:00:18]}  d1=Q {[%clk 0:01:44]} 63. Qb8+ {[%clk 0:00:17]}  Kg4 {[%clk 0:01:36]} 64. Qg8+ {[%clk 0:00:17]}  Kf4 {[%clk 0:01:37]} 65. Qb8+ {[%clk 0:00:17]}  Ke4 {[%clk 0:01:36]} 66. Qb4+ {[%clk 0:00:16]}  Ke3 {[%clk 0:01:36]} 67. Kxf5 {[%clk 0:00:14]}  Qh5+ {[%clk 0:01:36]} 68. Ke6 {[%clk 0:00:14]}  Qg6+ {[%clk 0:01:36]} 69. Kd7 {[%clk 0:00:13]}  Qf7+ {[%clk 0:01:36]} 70. Qe7+ {[%clk 0:00:14]}  Qxe7+ {[%clk 0:01:36]} 71. Kxe7 {[%clk 0:00:14]} 1/2-1/2


[Site "https://www.chess.com"]